[Event "*** Titled Tuesday Blitz"]
[Site "Chess.com"]
[Date "2020.12.29"]
[Round "9"]
[White "sergiochess83"]
[Black "Parhamov"]
[Result "1-0"]
[WhiteElo "2824"]
[BlackElo "2925"]
[TimeControl "180+1"]
[EndTime "11:44:56 PST"]
[Termination "sergiochess83 won by resignation"]

1. d4 {[%clk 0:03:00.9]} 1... Nf6 {[%clk 0:02:57.9]} 2. c4 {[%clk 0:03:00.5]}
2... e6 {[%clk 0:02:58.1]} 3. Nf3 {[%clk 0:02:59.5]} 3... d5 {[%clk 0:02:57.9]}
4. Nc3 {[%clk 0:02:57.8]} 4... dxc4 {[%clk 0:02:58.3]} 5. e3 {[%clk 0:02:54.4]}
5... a6 {[%clk 0:02:45.9]} 6. Bxc4 {[%clk 0:02:53.3]} 6... b5 {[%clk 0:02:45.1]}
7. Be2 {[%clk 0:02:52.9]} 7... Bb7 {[%clk 0:02:44.1]} 8. O-O {[%clk 0:02:48.8]}
8... Nbd7 {[%clk 0:02:44.2]} 9. b3 {[%clk 0:02:37.8]} 9... Bd6 {[%clk
0:02:41.7]} 10. Bb2 {[%clk 0:02:37.1]} 10... O-O {[%clk 0:02:42]} 11. Qc2 {[%clk
0:02:11.6]} 11... Qe7 {[%clk 0:02:35]} 12. Rad1 {[%clk 0:01:54.8]} 12... Rac8
{[%clk 0:02:31.6]} 13. Ng5 {[%clk 0:01:38.2]} 13... Ba3 {[%clk 0:02:29.8]} 14.
Ba1 {[%clk 0:01:28.1]} 14... c5 {[%clk 0:02:28.9]} 15. d5 {[%clk 0:01:13.5]}
15... h6 {[%clk 0:01:47.1]} 16. d6 {[%clk 0:00:48.2]} 16... Qd8 {[%clk
0:01:43.3]} 17. Nge4 {[%clk 0:00:48.5]} 17... c4 {[%clk 0:01:33.7]} 18. bxc4
{[%clk 0:00:45.9]} 18... bxc4 {[%clk 0:01:19.9]} 19. Bf3 {[%clk 0:00:37.4]}
19... Nxe4 {[%clk 0:01:12.7]} 20. Nxe4 {[%clk 0:00:33.5]} 20... c3 {[%clk
0:00:54]} 21. Qb3 {[%clk 0:00:23.1]} 21... Bxe4 {[%clk 0:00:47.8]} 22. Bxe4
{[%clk 0:00:23.2]} 22... Qa5 {[%clk 0:00:48.1]} 23. Bc2 {[%clk 0:00:18.2]} 23...
Rfd8 {[%clk 0:00:16]} 24. Rd4 {[%clk 0:00:18.2]} 24... Nc5 {[%clk 0:00:09]} 25.
Qc4 {[%clk 0:00:14.6]} 25... Bb2 {[%clk 0:00:08.2]} 26. d7 {[%clk 0:00:10.4]}
26... Rc7 {[%clk 0:00:03.6]} 27. Rfd1 {[%clk 0:00:06.5]} 27... Bxa1 {[%clk
0:00:03.4]} 28. Rxa1 {[%clk 0:00:06.5]} 28... Rdxd7 {[%clk 0:00:04]} 29. Rad1
{[%clk 0:00:05.3]} 29... Rxd4 {[%clk 0:00:02.7]} 30. Rxd4 {[%clk 0:00:05.4]}
30... Nd7 {[%clk 0:00:03.2]} 31. Qd3 {[%clk 0:00:05.5]} 31... Nf8 {[%clk
0:00:03.7]} 32. Rd8 {[%clk 0:00:05.3]} 32... Qf5 {[%clk 0:00:02.4]} 33. Rxf8+
{[%clk 0:00:04]} 33... Kh7 {[%clk 0:00:02]} 34. Qxf5+ {[%clk 0:00:03.9]} 34...
exf5 {[%clk 0:00:02.9]} 35. Bxf5+ {[%clk 0:00:04.3]} 35... g6 {[%clk 0:00:03.6]}
36. Bc2 {[%clk 0:00:04.5]} 36... Rd7 {[%clk 0:00:04.1]} 37. Rc8 {[%clk
0:00:03.7]} 37... Rd2 {[%clk 0:00:04.3]} 38. Rxc3 {[%clk 0:00:03.8]} 1-0

[Event "*** Titled Tuesday Blitz"]
[Site "Chess.com"]
[Date "2020.12.29"]
[Round "9"]
[White "Denis_Palkovich"]
[Black "ChessyInstinct"]
[Result "1-0"]
[WhiteElo "2325"]
[BlackElo "2471"]
[TimeControl "180+1"]
[EndTime "11:44:58 PST"]
[Termination "Denis_Palkovich won by checkmate"]

1. d4 {[%clk 0:03:00.9]} 1... d5 {[%clk 0:03:00.2]} 2. Bf4 {[%clk 0:02:59.5]}
2... Nf6 {[%clk 0:02:59.2]} 3. e3 {[%clk 0:02:59.6]} 3... e6 {[%clk 0:02:57.9]}
4. Nd2 {[%clk 0:02:59.9]} 4... c5 {[%clk 0:02:57.6]} 5. c3 {[%clk 0:02:59.4]}
5... Nc6 {[%clk 0:02:57.8]} 6. Bd3 {[%clk 0:02:58.6]} 6... Bd6 {[%clk
0:02:57.3]} 7. Bxd6 {[%clk 0:02:58.5]} 7... Qxd6 {[%clk 0:02:58.2]} 8. f4 {[%clk
0:02:59]} 8... Nd7 {[%clk 0:02:55.7]} 9. Ngf3 {[%clk 0:02:58.3]} 9... f5 {[%clk
0:02:55.9]} 10. Ne5 {[%clk 0:02:55.1]} 10... Ndxe5 {[%clk 0:02:49.5]} 11. fxe5
{[%clk 0:02:49.9]} 11... Qe7 {[%clk 0:02:48.6]} 12. O-O {[%clk 0:02:43.6]} 12...
Bd7 {[%clk 0:02:43.6]} 13. Qh5+ {[%clk 0:02:39.2]} 13... g6 {[%clk 0:02:38.3]}
14. Qh6 {[%clk 0:02:37.4]} 14... O-O-O {[%clk 0:02:34.6]} 15. Nf3 {[%clk
0:02:33.7]} 15... Rdg8 {[%clk 0:02:17]} 16. Ng5 {[%clk 0:02:27.4]} 16... Nd8
{[%clk 0:02:13.7]} 17. Rf3 {[%clk 0:01:56.7]} 17... Bc6 {[%clk 0:02:08.1]} 18.
Raf1 {[%clk 0:01:54.5]} 18... Nf7 {[%clk 0:02:04]} 19. Nxf7 {[%clk 0:01:53.5]}
19... Qxf7 {[%clk 0:02:04.9]} 20. Rg3 {[%clk 0:01:47.4]} 20... Qg7 {[%clk
0:01:41.6]} 21. Qxg7 {[%clk 0:01:43.8]} 21... Rxg7 {[%clk 0:01:42.5]} 22. h4
{[%clk 0:01:41]} 22... h6 {[%clk 0:01:39.3]} 23. dxc5 {[%clk 0:01:17.4]} 23...
g5 {[%clk 0:01:38.1]} 24. hxg5 {[%clk 0:01:11.8]} 24... hxg5 {[%clk 0:01:39]}
25. Rh3 {[%clk 0:00:58.2]} 25... Rxh3 {[%clk 0:01:16.5]} 26. gxh3 {[%clk
0:00:59.1]} 26... Rh7 {[%clk 0:01:16.6]} 27. Rf3 {[%clk 0:00:56]} 27... d4
{[%clk 0:01:11.4]} 28. Rg3 {[%clk 0:00:54.8]} 28... dxc3 {[%clk 0:00:51.7]} 29.
bxc3 {[%clk 0:00:51.4]} 29... Rd7 {[%clk 0:00:39.5]} 30. Bc4 {[%clk 0:00:51.4]}
30... Rd1+ {[%clk 0:00:39.1]} 31. Kf2 {[%clk 0:00:50.9]} 31... Bd5 {[%clk
0:00:27.1]} 32. Bxd5 {[%clk 0:00:46]} 32... Rxd5 {[%clk 0:00:28]} 33. Rxg5
{[%clk 0:00:45]} 33... Rxe5 {[%clk 0:00:21]} 34. h4 {[%clk 0:00:40.3]} 34...
Rxc5 {[%clk 0:00:21.2]} 35. h5 {[%clk 0:00:39.9]} 35... Rxc3 {[%clk 0:00:21.5]}
36. h6 {[%clk 0:00:37.4]} 36... Rc2+ {[%clk 0:00:17.4]} 37. Kg3 {[%clk
0:00:36.7]} 37... Rc1 {[%clk 0:00:15.9]} 38. Rh5 {[%clk 0:00:32.2]} 38... Rg1+
{[%clk 0:00:11.6]} 39. Kf4 {[%clk 0:00:31.5]} 39... Rg8 {[%clk 0:00:11.5]} 40.
h7 {[%clk 0:00:31.5]} 40... Rh8 {[%clk 0:00:11.9]} 41. Ke5 {[%clk 0:00:31.9]}
41... Kd7 {[%clk 0:00:11.3]} 42. Kf6 {[%clk 0:00:32.5]} 42... Kd6 {[%clk
0:00:10.7]} 43. Kg7 {[%clk 0:00:32.4]} 43... Rxh7+ {[%clk 0:00:10.7]} 44. Rxh7
{[%clk 0:00:31.8]} 44... e5 {[%clk 0:00:10.9]} 45. Kf6 {[%clk 0:00:32.2]} 45...
f4 {[%clk 0:00:11.8]} 46. exf4 {[%clk 0:00:32]} 46... exf4 {[%clk 0:00:12.7]}
47. Rxb7 {[%clk 0:00:31.9]} 47... f3 {[%clk 0:00:12.8]} 48. Rb3 {[%clk
0:00:31.9]} 48... Kc5 {[%clk 0:00:13.3]} 49. Rxf3 {[%clk 0:00:32.3]} 49... Kb4
{[%clk 0:00:14.2]} 50. Ke5 {[%clk 0:00:30.9]} 50... a5 {[%clk 0:00:15.1]} 51.
Kd5 {[%clk 0:00:30.5]} 51... a4 {[%clk 0:00:16]} 52. a3+ {[%clk 0:00:27.9]}
52... Kb5 {[%clk 0:00:15.6]} 53. Rf8 {[%clk 0:00:22]} 53... Ka5 {[%clk 0:00:15]}
54. Kc6 {[%clk 0:00:20]} 54... Ka6 {[%clk 0:00:15.4]} 55. Ra8# {[%clk
0:00:20.2]} 1-0

[Event "*** Titled Tuesday Blitz"]
[Site "Chess.com"]
[Date "2020.12.29"]
[Round "9"]
[White "Kazmin_Dmitrij"]
[Black "kai_nov"]
[Result "1/2-1/2"]
[WhiteElo "2264"]
[BlackElo "2375"]
[TimeControl "180+1"]
[EndTime "11:44:58 PST"]
[Termination "Game drawn by repetition"]

1. e4 {[%clk 0:03:00.9]} 1... c5 {[%clk 0:02:59.5]} 2. Nc3 {[%clk 0:02:58.1]}
2... e6 {[%clk 0:02:58.9]} 3. g3 {[%clk 0:02:57.6]} 3... d5 {[%clk 0:02:55.5]}
4. exd5 {[%clk 0:02:52.4]} 4... exd5 {[%clk 0:02:55]} 5. d4 {[%clk 0:02:49.9]}
5... cxd4 {[%clk 0:02:51.5]} 6. Qxd4 {[%clk 0:02:49.8]} 6... Nf6 {[%clk
0:02:48.5]} 7. Bg5 {[%clk 0:02:47.9]} 7... Nc6 {[%clk 0:02:44.6]} 8. Bxf6 {[%clk
0:01:57.1]} 8... Nxd4 {[%clk 0:02:43.7]} 9. Bxd8 {[%clk 0:01:56.7]} 9... Nxc2+
{[%clk 0:02:40.6]} 10. Kd2 {[%clk 0:01:55.5]} 10... Nxa1 {[%clk 0:02:37.9]} 11.
Bg5 {[%clk 0:01:42.4]} 11... Bb4 {[%clk 0:02:36.9]} 12. Nf3 {[%clk 0:01:30.1]}
12... d4 {[%clk 0:01:47.9]} 13. Nxd4 {[%clk 0:01:19.6]} 13... f6 {[%clk
0:01:44.6]} 14. Bb5+ {[%clk 0:01:13]} 14... Kf7 {[%clk 0:01:42.2]} 15. Be3
{[%clk 0:01:06.7]} 15... Rd8 {[%clk 0:01:26.7]} 16. Rxa1 {[%clk 0:01:03.8]}
16... Bc5 {[%clk 0:01:22.3]} 17. Ne2 {[%clk 0:00:59.3]} 17... Bg4 {[%clk
0:01:16.1]} 18. Rc1 {[%clk 0:00:43.2]} 18... Bb4+ {[%clk 0:00:42.5]} 19. Nc3
{[%clk 0:00:40.5]} 19... Rac8 {[%clk 0:00:36.8]} 20. Bd3 {[%clk 0:00:30.9]}
20... Bc5 {[%clk 0:00:23.7]} 21. Nde2 {[%clk 0:00:27]} 21... Rxd3+ {[%clk
0:00:12.7]} 22. Kxd3 {[%clk 0:00:25.3]} 22... Bf5+ {[%clk 0:00:09.6]} 23. Kd2
{[%clk 0:00:24.2]} 23... Rd8+ {[%clk 0:00:09.3]} 24. Ke1 {[%clk 0:00:24.3]}
24... Bxe3 {[%clk 0:00:09.5]} 25. fxe3 {[%clk 0:00:24]} 25... a6 {[%clk
0:00:10]} 26. Nd4 {[%clk 0:00:23.7]} 26... Bg4 {[%clk 0:00:07.9]} 27. Kf2 {[%clk
0:00:22.7]} 27... g6 {[%clk 0:00:07.2]} 28. Nce2 {[%clk 0:00:17.6]} 28... Rd7
{[%clk 0:00:06.9]} 29. Rc4 {[%clk 0:00:16.4]} 29... h5 {[%clk 0:00:06.3]} 30.
Nf3 {[%clk 0:00:14.4]} 30... g5 {[%clk 0:00:05.2]} 31. Rd4 {[%clk 0:00:12.6]}
31... Rc7 {[%clk 0:00:04.9]} 32. Nc3 {[%clk 0:00:12.6]} 32... Be6 {[%clk
0:00:04.7]} 33. Nd2 {[%clk 0:00:12.1]} 33... b5 {[%clk 0:00:04.6]} 34. Rd6
{[%clk 0:00:11.7]} 34... b4 {[%clk 0:00:04.2]} 35. Nce4 {[%clk 0:00:10.6]} 35...
Rc2 {[%clk 0:00:03.1]} 36. Rxa6 {[%clk 0:00:09]} 36... Rxb2 {[%clk 0:00:03.3]}
37. Ra7+ {[%clk 0:00:08.9]} 37... Kg6 {[%clk 0:00:03.1]} 38. Ra6 {[%clk
0:00:05.2]} 38... Kf7 {[%clk 0:00:02.9]} 39. Ra7+ {[%clk 0:00:04.8]} 39... Kg6
{[%clk 0:00:03.3]} 40. Ra6 {[%clk 0:00:02.7]} 40... Kf7 {[%clk 0:00:03.6]}
1/2-1/2

[Event "*** Titled Tuesday Blitz"]
[Site "Chess.com"]
[Date "2020.12.29"]
[Round "9"]
[White "Zhigalko_Sergei"]
[Black "ChessLover0108"]
[Result "1-0"]
[WhiteElo "2859"]
[BlackElo "2749"]
[TimeControl "180+1"]
[EndTime "11:45:00 PST"]
[Termination "Zhigalko_Sergei won on time"]

1. e4 {[%clk 0:03:00.9]} 1... c5 {[%clk 0:02:59.1]} 2. Nf3 {[%clk 0:02:59.9]}
2... d6 {[%clk 0:02:59.6]} 3. d4 {[%clk 0:03:00]} 3... cxd4 {[%clk 0:03:00.4]}
4. Qxd4 {[%clk 0:03:00.9]} 4... a6 {[%clk 0:02:59.5]} 5. Bc4 {[%clk 0:03:00.9]}
5... Nc6 {[%clk 0:02:51.4]} 6. Qd3 {[%clk 0:03:01.1]} 6... Bg4 {[%clk
0:02:42.7]} 7. Nc3 {[%clk 0:02:57]} 7... e6 {[%clk 0:02:36]} 8. Bf4 {[%clk
0:02:52.7]} 8... Bxf3 {[%clk 0:02:13.7]} 9. Qxf3 {[%clk 0:02:45.6]} 9... Ne5
{[%clk 0:02:14.6]} 10. Qe2 {[%clk 0:02:44.2]} 10... Qc7 {[%clk 0:02:12.5]} 11.
Bb3 {[%clk 0:02:42.4]} 11... Nf6 {[%clk 0:02:12.7]} 12. Bg3 {[%clk 0:02:38.7]}
12... g5 {[%clk 0:01:52.6]} 13. O-O-O {[%clk 0:02:25.4]} 13... O-O-O {[%clk
0:01:52.1]} 14. Kb1 {[%clk 0:02:02.5]} 14... Rg8 {[%clk 0:01:47.6]} 15. f3
{[%clk 0:02:01.3]} 15... h5 {[%clk 0:01:46]} 16. Bf2 {[%clk 0:02:01.1]} 16...
Kb8 {[%clk 0:01:41.6]} 17. h4 {[%clk 0:01:52.2]} 17... gxh4 {[%clk 0:01:25.1]}
18. Rxh4 {[%clk 0:01:42.1]} 18... Rxg2 {[%clk 0:01:20.1]} 19. Ba7+ {[%clk
0:01:41.6]} 19... Kxa7 {[%clk 0:01:20.7]} 20. Qxg2 {[%clk 0:01:42.5]} 20... Ng6
{[%clk 0:01:21.1]} 21. Rhh1 {[%clk 0:01:41.2]} 21... Qc5 {[%clk 0:00:43.1]} 22.
Na4 {[%clk 0:01:29]} 22... Qe5 {[%clk 0:00:43]} 23. Qg1+ {[%clk 0:00:55.5]}
23... Kb8 {[%clk 0:00:42.9]} 24. Nc5 {[%clk 0:00:49.2]} 24... Nf4 {[%clk
0:00:20.8]} 25. Nxa6+ {[%clk 0:00:26.1]} 25... bxa6 {[%clk 0:00:21.7]} 26. Qb6+
{[%clk 0:00:26.5]} 26... Kc8 {[%clk 0:00:21.8]} 27. Rd4 {[%clk 0:00:16.7]} 27...
Kd7 {[%clk 0:00:22.2]} 28. Rc4 {[%clk 0:00:04.2]} 28... Ke7 {[%clk 0:00:20.6]}
29. Rc7+ {[%clk 0:00:04.6]} 29... Nd7 {[%clk 0:00:13.4]} 30. Ba4 {[%clk
0:00:04.7]} 30... Bg7 {[%clk 0:00:13.8]} 31. Qb7 {[%clk 0:00:03.7]} 31... Bf6
{[%clk 0:00:08.5]} 32. Bxd7 {[%clk 0:00:03.6]} 32... Kf8 {[%clk 0:00:08.4]} 33.
Ba4 {[%clk 0:00:03.6]} 33... Kg8 {[%clk 0:00:04.5]} 34. Rg1+ {[%clk 0:00:03.1]}
34... Ng6 {[%clk 0:00:02.8]} 35. c3 {[%clk 0:00:03.8]} 35... Qf4 {[%clk
0:00:02.6]} 36. Bc2 {[%clk 0:00:03]} 36... Qxf3 {[%clk 0:00:02.6]} 37. Rxf7
{[%clk 0:00:03.1]} 37... Kh8 {[%clk 0:00:02.5]} 38. a3 {[%clk 0:00:02.5]} 38...
Ra8 {[%clk 0:00:01.3]} 39. Rxg6 {[%clk 0:00:02.8]} 1-0

[Event "*** Titled Tuesday Blitz"]
[Site "Chess.com"]
[Date "2020.12.29"]
[Round "9"]
[White "Vesper2018"]
[Black "1random"]
[Result "1-0"]
[WhiteElo "2620"]
[BlackElo "2429"]
[TimeControl "180+1"]
[EndTime "11:45:00 PST"]
[Termination "Vesper2018 won by checkmate"]

1. e4 {[%clk 0:03:00.9]} 1... f5 {[%clk 0:02:52.3]} 2. exf5 {[%clk 0:02:56.4]}
2... Nf6 {[%clk 0:02:52.7]} 3. d4 {[%clk 0:02:54.2]} 3... d5 {[%clk 0:02:53.4]}
4. Bd3 {[%clk 0:02:54.1]} 4... c5 {[%clk 0:02:53.9]} 5. c3 {[%clk 0:02:51.4]}
5... e6 {[%clk 0:02:53.7]} 6. fxe6 {[%clk 0:02:48.5]} 6... Bd6 {[%clk
0:02:53.9]} 7. Nf3 {[%clk 0:02:47.5]} 7... O-O {[%clk 0:02:54.6]} 8. O-O {[%clk
0:02:47.2]} 8... Bxe6 {[%clk 0:02:55.1]} 9. h3 {[%clk 0:02:36]} 9... Nc6 {[%clk
0:02:27.6]} 10. Re1 {[%clk 0:02:34.4]} 10... Bf7 {[%clk 0:02:18.3]} 11. Ne5
{[%clk 0:02:30]} 11... Bh5 {[%clk 0:02:14.4]} 12. g4 {[%clk 0:02:16]} 12... Be8
{[%clk 0:02:07.1]} 13. Bg5 {[%clk 0:01:58.3]} 13... Qc7 {[%clk 0:02:00]} 14.
Nxc6 {[%clk 0:01:53.8]} 14... Bxc6 {[%clk 0:01:53.2]} 15. Nd2 {[%clk 0:01:47.9]}
15... Ne4 {[%clk 0:01:35.4]} 16. Nxe4 {[%clk 0:01:38.4]} 16... dxe4 {[%clk
0:01:35.3]} 17. Bxe4 {[%clk 0:01:38.2]} 17... Bh2+ {[%clk 0:01:32.2]} 18. Kg2
{[%clk 0:01:36.3]} 18... Rxf2+ {[%clk 0:01:22.6]} 19. Kxf2 {[%clk 0:01:26.5]}
19... Qg3+ {[%clk 0:01:13]} 20. Ke2 {[%clk 0:01:26.5]} 20... Bxe4 {[%clk
0:01:03.3]} 21. Kd2 {[%clk 0:01:24.2]} 21... Qf2+ {[%clk 0:00:33.6]} 22. Kc1
{[%clk 0:01:08]} 22... Bf4+ {[%clk 0:00:05]} 23. Bxf4 {[%clk 0:01:07.2]} 23...
Qxf4+ {[%clk 0:00:05.9]} 24. Qd2 {[%clk 0:01:07.1]} 24... Qf3 {[%clk 0:00:05.4]}
25. Qe3 {[%clk 0:01:04.3]} 25... Qxe3+ {[%clk 0:00:05.8]} 26. Rxe3 {[%clk
0:01:04.2]} 26... Bg6 {[%clk 0:00:06.7]} 27. Kd2 {[%clk 0:01:01.7]} 27... cxd4
{[%clk 0:00:07.6]} 28. cxd4 {[%clk 0:01:01.7]} 28... Rd8 {[%clk 0:00:08.5]} 29.
Kc3 {[%clk 0:00:59.1]} 29... Rc8+ {[%clk 0:00:08.8]} 30. Kb4 {[%clk 0:00:59.3]}
30... Rc2 {[%clk 0:00:08.3]} 31. b3 {[%clk 0:00:57.1]} 31... Rd2 {[%clk
0:00:08.7]} 32. Kc5 {[%clk 0:00:54.1]} 32... Rc2+ {[%clk 0:00:08.9]} 33. Kd6
{[%clk 0:00:52.3]} 33... Rd2 {[%clk 0:00:04.8]} 34. d5 {[%clk 0:00:52]} 34...
Bf7 {[%clk 0:00:05]} 35. Re5 {[%clk 0:00:52]} 35... Rd3 {[%clk 0:00:03.9]} 36.
Rc1 {[%clk 0:00:51.3]} 36... g6 {[%clk 0:00:04.6]} 37. Rc8+ {[%clk 0:00:50.1]}
37... Kg7 {[%clk 0:00:05.5]} 38. Rc7 {[%clk 0:00:50.1]} 38... Kf6 {[%clk
0:00:05.7]} 39. g5+ {[%clk 0:00:49.5]} 39... Kg7 {[%clk 0:00:06.6]} 40. h4
{[%clk 0:00:48]} 40... b6 {[%clk 0:00:04.4]} 41. Rxa7 {[%clk 0:00:44.5]} 41...
b5 {[%clk 0:00:05.3]} 42. Rb7 {[%clk 0:00:43.8]} 42... b4 {[%clk 0:00:04.5]} 43.
Rxb4 {[%clk 0:00:43.3]} 43... h5 {[%clk 0:00:05.4]} 44. Rb7 {[%clk 0:00:41.8]}
44... Rd2 {[%clk 0:00:03.4]} 45. a4 {[%clk 0:00:41.3]} 45... Rd3 {[%clk
0:00:03.8]} 46. a5 {[%clk 0:00:41.5]} 46... Rd2 {[%clk 0:00:03.9]} 47. a6 {[%clk
0:00:41.6]} 47... Ra2 {[%clk 0:00:04.4]} 48. a7 {[%clk 0:00:40.4]} 48... Ra6+
{[%clk 0:00:03.9]} 49. Kc5 {[%clk 0:00:40.5]} 49... Kh8 {[%clk 0:00:04.6]} 50.
Rxf7 {[%clk 0:00:39.4]} 50... Kg8 {[%clk 0:00:04.3]} 51. Rb7 {[%clk 0:00:39.4]}
51... Kf8 {[%clk 0:00:04.1]} 52. d6 {[%clk 0:00:37]} 52... Ra5+ {[%clk
0:00:03.9]} 53. Kd4 {[%clk 0:00:36.5]} 53... Ra4+ {[%clk 0:00:02.3]} 54. bxa4
{[%clk 0:00:35.5]} 54... Kg8 {[%clk 0:00:03.2]} 55. Re8# {[%clk 0:00:35.5]} 1-0

[Event "*** Titled Tuesday Blitz"]
[Site "Chess.com"]
[Date "2020.12.29"]
[Round "9"]
[White "PotapovaM"]
[Black "Nafania1"]
[Result "0-1"]
[WhiteElo "2531"]
[BlackElo "2429"]
[TimeControl "180+1"]
[EndTime "11:45:01 PST"]
[Termination "Nafania1 won on time"]

1. d4 {[%clk 0:03:00.9]} 1... Nf6 {[%clk 0:02:59.6]} 2. c4 {[%clk 0:03:01.5]}
2... e6 {[%clk 0:03:00.1]} 3. Nf3 {[%clk 0:03:01]} 3... Bb4+ {[%clk 0:02:59.9]}
4. Nbd2 {[%clk 0:03:00.2]} 4... O-O {[%clk 0:02:59.1]} 5. a3 {[%clk 0:03:00.1]}
5... Be7 {[%clk 0:02:59.1]} 6. e4 {[%clk 0:03:00]} 6... d6 {[%clk 0:02:58.3]} 7.
Be2 {[%clk 0:02:53.9]} 7... c5 {[%clk 0:02:57.6]} 8. d5 {[%clk 0:02:50.5]} 8...
Nbd7 {[%clk 0:02:55.8]} 9. O-O {[%clk 0:02:47.9]} 9... Ng4 {[%clk 0:02:53.9]}
10. Re1 {[%clk 0:02:42.8]} 10... Bf6 {[%clk 0:02:51]} 11. Rb1 {[%clk 0:02:41.1]}
11... exd5 {[%clk 0:02:41.9]} 12. cxd5 {[%clk 0:02:24.5]} 12... a6 {[%clk
0:02:37.7]} 13. Nc4 {[%clk 0:02:15.5]} 13... Nde5 {[%clk 0:02:37.3]} 14. Nfxe5
{[%clk 0:02:13.4]} 14... Nxe5 {[%clk 0:02:36.9]} 15. Ne3 {[%clk 0:02:07.5]}
15... Ng6 {[%clk 0:02:35]} 16. b4 {[%clk 0:01:56.7]} 16... cxb4 {[%clk
0:02:25.4]} 17. axb4 {[%clk 0:01:56.2]} 17... Re8 {[%clk 0:02:25.7]} 18. Bd3
{[%clk 0:01:38.3]} 18... Bd7 {[%clk 0:02:22.4]} 19. Nc4 {[%clk 0:01:21.3]} 19...
Bb5 {[%clk 0:02:22.4]} 20. Na5 {[%clk 0:01:21.2]} 20... Bxd3 {[%clk 0:02:12.6]}
21. Qxd3 {[%clk 0:01:22.1]} 21... Qd7 {[%clk 0:02:11.1]} 22. Be3 {[%clk
0:01:16.3]} 22... Ne5 {[%clk 0:02:07.3]} 23. Qe2 {[%clk 0:01:06.3]} 23... Rac8
{[%clk 0:01:58.4]} 24. h3 {[%clk 0:01:00.8]} 24... Ng6 {[%clk 0:01:49.5]} 25.
Bb6 {[%clk 0:00:56]} 25... Bc3 {[%clk 0:01:28.9]} 26. Rec1 {[%clk 0:00:51.7]}
26... f5 {[%clk 0:01:08.8]} 27. Qd3 {[%clk 0:00:41.6]} 27... fxe4 {[%clk
0:01:08.6]} 28. Qe3 {[%clk 0:00:25.5]} 28... Be5 {[%clk 0:00:58.1]} 29. Rd1
{[%clk 0:00:25.7]} 29... Bf4 {[%clk 0:00:56.8]} 30. Qd4 {[%clk 0:00:25.6]} 30...
Be5 {[%clk 0:00:51.7]} 31. Qe3 {[%clk 0:00:25.6]} 31... Rc3 {[%clk 0:00:51.8]}
32. Qd2 {[%clk 0:00:20.8]} 32... Rd3 {[%clk 0:00:48.8]} 33. Qe2 {[%clk
0:00:19.9]} 33... Nf4 {[%clk 0:00:48.6]} 34. Qxe4 {[%clk 0:00:19.3]} 34... Rxd1+
{[%clk 0:00:44.3]} 35. Rxd1 {[%clk 0:00:18.7]} 35... Nxh3+ {[%clk 0:00:44.4]}
36. Kf1 {[%clk 0:00:18.8]} 36... Ng5 {[%clk 0:00:41.5]} 37. Qc2 {[%clk
0:00:15.7]} 37... Qg4 {[%clk 0:00:36.2]} 38. Re1 {[%clk 0:00:07.5]} 38... Qxb4
{[%clk 0:00:34]} 39. Nc4 {[%clk 0:00:06.6]} 39... Rc8 {[%clk 0:00:29.9]} 40. Rc1
{[%clk 0:00:03.7]} 40... Bf4 {[%clk 0:00:27.4]} 41. Qf5 {[%clk 0:00:01.7]} 41...
Rxc4 {[%clk 0:00:23]} 42. Rb1 {[%clk 0:00:01.5]} 42... Qc3 {[%clk 0:00:18.8]}
43. Qd7 {[%clk 0:00:01.3]} 43... Qd3+ {[%clk 0:00:18]} 0-1

[Event "*** Titled Tuesday Blitz"]
[Site "Chess.com"]
[Date "2020.12.29"]
[Round "9"]
[White "yuki_chess123"]
[Black "guillembaches"]
[Result "1/2-1/2"]
[WhiteElo "2223"]
[BlackElo "2456"]
[TimeControl "180+1"]
[EndTime "11:45:02 PST"]
[Termination "Game drawn by repetition"]

1. e4 {[%clk 0:02:59.2]} 1... c5 {[%clk 0:02:59.9]} 2. Nf3 {[%clk 0:02:58.7]}
2... d6 {[%clk 0:03:00.4]} 3. Bb5+ {[%clk 0:02:59.2]} 3... Bd7 {[%clk
0:02:59.8]} 4. c4 {[%clk 0:02:59.2]} 4... e5 {[%clk 0:02:58.9]} 5. Bxd7+ {[%clk
0:02:57.6]} 5... Qxd7 {[%clk 0:02:58.7]} 6. Nc3 {[%clk 0:02:56.5]} 6... Nc6
{[%clk 0:02:58.5]} 7. d3 {[%clk 0:02:56.4]} 7... Be7 {[%clk 0:02:58.7]} 8. a3
{[%clk 0:02:56.1]} 8... a5 {[%clk 0:02:57.3]} 9. Nd5 {[%clk 0:02:54.6]} 9... Bd8
{[%clk 0:02:56.2]} 10. Qa4 {[%clk 0:02:53]} 10... Nge7 {[%clk 0:02:48.7]} 11.
Bd2 {[%clk 0:02:49.9]} 11... O-O {[%clk 0:02:32.8]} 12. b4 {[%clk 0:02:49.4]}
12... Nxd5 {[%clk 0:02:24.6]} 13. cxd5 {[%clk 0:01:51]} 13... Nb8 {[%clk
0:02:22.9]} 14. b5 {[%clk 0:01:32.7]} 14... f5 {[%clk 0:02:08.5]} 15. Qc4 {[%clk
0:01:21.2]} 15... f4 {[%clk 0:01:59.2]} 16. a4 {[%clk 0:01:17.7]} 16... g5
{[%clk 0:01:52.2]} 17. Bc3 {[%clk 0:01:16.3]} 17... Qe8 {[%clk 0:01:37.3]} 18.
h3 {[%clk 0:01:06.4]} 18... Nd7 {[%clk 0:01:34.4]} 19. Qa2 {[%clk 0:01:02.4]}
19... h5 {[%clk 0:01:31]} 20. Qe2 {[%clk 0:00:57.1]} 20... Qg6 {[%clk
0:01:20.2]} 21. Nd2 {[%clk 0:00:56.5]} 21... Nb6 {[%clk 0:01:12.7]} 22. f3
{[%clk 0:00:50.7]} 22... Kf7 {[%clk 0:01:08.6]} 23. Nc4 {[%clk 0:00:49.5]} 23...
Nxc4 {[%clk 0:01:04.6]} 24. dxc4 {[%clk 0:00:49.5]} 24... Rh8 {[%clk 0:01:00.9]}
25. O-O-O {[%clk 0:00:48]} 25... b6 {[%clk 0:00:56.9]} 26. Kc2 {[%clk
0:00:47.3]} 26... Be7 {[%clk 0:00:56.6]} 27. Kb3 {[%clk 0:00:46.4]} 27... Rh6
{[%clk 0:00:56.2]} 28. Rdg1 {[%clk 0:00:46.1]} 28... Rah8 {[%clk 0:00:51.8]} 29.
Be1 {[%clk 0:00:45.8]} 29... g4 {[%clk 0:00:43.6]} 30. hxg4 {[%clk 0:00:41.9]}
30... hxg4 {[%clk 0:00:43.5]} 31. Rxh6 {[%clk 0:00:41.9]} 31... Rxh6 {[%clk
0:00:39.7]} 32. fxg4 {[%clk 0:00:38.7]} 32... Bh4 {[%clk 0:00:32.2]} 33. g3
{[%clk 0:00:36.1]} 33... Bg5 {[%clk 0:00:27.7]} 34. Qf3 {[%clk 0:00:25.1]} 34...
Rh3 {[%clk 0:00:24.8]} 35. Rh1 {[%clk 0:00:22.1]} 35... Qh6 {[%clk 0:00:20.6]}
36. Rxh3 {[%clk 0:00:21.4]} 36... Qxh3 {[%clk 0:00:21.5]} 37. Bf2 {[%clk
0:00:20.5]} 37... Kg6 {[%clk 0:00:21.3]} 38. Kc2 {[%clk 0:00:20]} 38... Qf1
{[%clk 0:00:21.1]} 39. gxf4 {[%clk 0:00:18.2]} 39... Qxc4+ {[%clk 0:00:20.2]}
40. Kd1 {[%clk 0:00:18.1]} 40... Qxa4+ {[%clk 0:00:17.9]} 41. Ke1 {[%clk
0:00:17.9]} 41... Bxf4 {[%clk 0:00:16.4]} 42. Kf1 {[%clk 0:00:17.8]} 42... Qxb5+
{[%clk 0:00:16.5]} 43. Kg2 {[%clk 0:00:18.3]} 43... Qc4 {[%clk 0:00:13.7]} 44.
g5 {[%clk 0:00:17.7]} 44... Qc2 {[%clk 0:00:12.9]} 45. Kh3 {[%clk 0:00:15.9]}
45... Qd2 {[%clk 0:00:11.8]} 46. Qg4 {[%clk 0:00:14.5]} 46... Qxf2 {[%clk
0:00:11.7]} 47. Qf5+ {[%clk 0:00:14.6]} 47... Kg7 {[%clk 0:00:11.8]} 48. Qf6+
{[%clk 0:00:14.7]} 48... Kg8 {[%clk 0:00:12.3]} 49. Qg6+ {[%clk 0:00:14.4]}
49... Kf8 {[%clk 0:00:12.6]} 50. Qf6+ {[%clk 0:00:14.8]} 50... Kg8 {[%clk
0:00:12.6]} 51. Qg6+ {[%clk 0:00:14.7]} 51... Kf8 {[%clk 0:00:13]} 52. Qf6+
{[%clk 0:00:15.1]} 52... Kg8 {[%clk 0:00:12.5]} 1/2-1/2